fUST/lending_fUST_20241029
["ID","MTS","AMOUNT","RATE_DAILY","PERIOD"]
[340936694,1730135435433,-500.0,0.00024658,2]
[340936695,1730135435444,-500.0,0.00024658,2]
[340936696,1730135435453,-500.0,0.00024658,2]
[340936697,1730135435463,-500.0,0.00024658,2]
[340936698,1730135435472,-500.0,0.00024658,2]
[340936699,1730135435481,-500.0,0.00024658,2]
[340936700,1730135435491,-500.0,0.00024658,2]
[340936701,1730135435501,-500.0,0.00024658,2]
[340936702,1730135435509,-500.0,0.00024658,2]
[340936703,1730135435519,-486.95841163,0.00024658,2]
[340936704,1730135435528,-500.0,0.00024658,2]
[340936705,1730135435537,-500.0,0.00024658,2]
[340936706,1730135435547,-500.0,0.00024658,2]
[340936707,1730135435556,-500.0,0.00024658,2]
[340936708,1730135435565,-500.0,0.00024658,2]
[340936709,1730135435574,-500.0,0.00024658,2]
[340936710,1730135435583,-500.0,0.00024658,2]
[340936711,1730135435593,-450.0,0.00024658,2]
[340936712,1730135435602,-500.0,0.00024658,2]
[340936713,1730135435613,-500.0,0.00024658,2]
[340936714,1730135435622,-500.0,0.00024658,2]
[340936715,1730135435631,-500.0,0.00024658,2]
[340936716,1730135435640,-500.0,0.00024658,2]
[340936717,1730135435649,-500.0,0.00024658,2]
[340936718,1730135435659,-500.0,0.00024658,2]
[340936719,1730135435668,-500.0,0.00024658,2]
[340936720,1730135435677,-500.0,0.00024658,2]
[340936721,1730135435686,-500.0,0.00024658,2]
[340936722,1730135435695,-500.0,0.00024658,2]
[340936723,1730135435704,-500.0,0.00024673,2]
[340936724,1730135435714,-586.52235018,0.00024673,2]
[340936725,1730135435723,-500.27744171,0.00024673,2]
[340936726,1730135435732,-500.0,0.00024673,2]
[340936727,1730135435742,-500.3565593,0.00024673,2]
[340936728,1730135435750,-500.0,0.00024673,2]
[340936729,1730135435760,-500.0,0.00024673,2]
[340936730,1730135435769,-500.0,0.00024673,2]
[340936731,1730135435778,-508.40175402,0.00024673,2]
[340936732,1730135435787,-519.06919613,0.00024673,2]
[340936733,1730135435797,-500.0,0.00024673,2]
[340936734,1730135435806,-255.15937124,0.00024673,2]
[340936735,1730135435816,-500.0,0.00024673,2]
[340936736,1730135435825,-500.0,0.00024673,2]
[340936737,1730135435834,-500.0,0.00024673,2]
[340936738,1730135435843,-500.0,0.00024673,2]
[340936739,1730135435853,-159.05936408,0.00024724,2]
[340936740,1730135435863,-206.740455,0.00024818,2]
[340936741,1730135435872,-151.0,0.0002484,7]
[340936742,1730135435881,-281.53239,0.0002484,7]
[340936743,1730135435890,-8857.26934659,0.00024883,2]
[340936744,1730135435900,-159.05936408,0.00024891,2]
[340936745,1730135435909,-500.0,0.0002492,2]
[340936746,1730135435918,-311.82454561,0.0002492,2]
[340936747,1730135435928,-500.48064467,0.0002492,2]
[340936748,1730135435937,-500.0,0.0002492,2]
[340936749,1730135435946,-8297.71352274,0.00024921,3]
[340936750,1730135435956,-11793.3736394,0.00024921,3]
[340936751,1730135435965,-643.94237413,0.0002493,2]
[340936752,1730135435974,-500.0,0.00024931,4]
[340936753,1730135435986,-501.52354579,0.00024931,4]
[340936754,1730135436001,-500.0,0.00024931,4]
[340936755,1730135436010,-500.0,0.00024931,4]
[340936756,1730135436020,-615.25,0.00024931,4]
[340936757,1730135436030,-500.0,0.00024931,4]
[340936758,1730135436040,-500.0,0.00024931,4]
[340936759,1730135436050,-500.0,0.00024931,4]
[340936760,1730135436059,-500.0,0.00024931,4]
[340936761,1730135436068,-500.0,0.00024931,4]
[340936762,1730135436078,-500.0,0.00024931,4]
[340936763,1730135436087,-500.0,0.00024931,4]
[340936764,1730135436097,-500.0,0.00024931,4]
[340936765,1730135436110,-500.0,0.00024931,4]
[340936766,1730135436119,-500.0,0.00024931,4]
[340936767,1730135436130,-500.0,0.00024931,4]
[340936768,1730135436140,-1082.28,0.00024931,4]
[340936769,1730135436149,-500.0,0.00024931,4]
[340936770,1730135436160,-687.05,0.00024931,4]
[340936771,1730135436169,-500.0,0.00024931,4]
[340936772,1730135436178,-542.52,0.00024931,4]
[340936773,1730135436188,-505.5927976,0.00024931,4]
[340936774,1730135436197,-820.79,0.00024931,4]
[340936775,1730135436207,-500.0,0.00024931,4]
[340936776,1730135436216,-500.0,0.00024931,4]
[340936777,1730135436225,-500.0,0.00024931,4]
[340936778,1730135436235,-500.0,0.00024931,4]
[340936779,1730135436247,-500.0,0.00024931,4]
[340936780,1730135436257,-500.0,0.00024931,4]
[340936781,1730135436266,-500.0,0.00024931,4]
[340936782,1730135436276,-500.0,0.00024931,4]
[340936783,1730135436288,-505.64,0.00024931,4]
[340936784,1730135436297,-500.0,0.00024931,4]
[340936785,1730135436307,-526.99,0.00024931,2]
[340936786,1730135436317,-668.71,0.00024931,4]
[340936787,1730135436327,-1279.73,0.00024931,4]
[340936788,1730135436337,-505.48,0.00024931,4]
[340936789,1730135436346,-500.0,0.00024931,4]
[340936790,1730135436356,-1124.75,0.00024931,4]
[340936791,1730135436366,-500.0,0.00024931,4]
[340936792,1730135436375,-500.0,0.00024931,4]
[340936793,1730135436384,-500.0,0.00024931,4]
[340936794,1730135436394,-500.0,0.00024931,4]
[340936795,1730135436404,-884.17,0.00024931,4]
[340936796,1730135436413,-592.5049558,0.00024931,4]
[340936797,1730135436422,-500.0,0.00024931,4]
[340936798,1730135436432,-500.0,0.00024931,4]
[340936799,1730135436441,-500.0,0.00024931,4]
[340936800,1730135436451,-604.33,0.00024931,4]
[340936801,1730135436460,-570.27,0.00024931,4]
[340936802,1730135436469,-500.0,0.00024931,4]
[340936803,1730135436478,-500.0,0.00024931,4]
[340936804,1730135436487,-500.0,0.00024931,4]
[340936805,1730135436497,-500.0,0.00024931,4]
[340936806,1730135436506,-151.0,0.00024931,7]
[340936807,1730135436515,-500.0,0.00024931,4]
[340936808,1730135436525,-500.0,0.00024931,4]
[340936809,1730135436535,-500.0,0.00024931,4]
[340936810,1730135436544,-500.0,0.00024931,4]
[340936811,1730135436553,-500.0,0.00024931,4]
[340936812,1730135436563,-500.0,0.00024931,4]
[340936813,1730135436573,-500.0,0.00024931,4]
[340936814,1730135436582,-500.0,0.00024931,4]
[340936815,1730135436592,-814.15,0.00024931,4]
[340936816,1730135436602,-500.0,0.00024931,4]
[340936817,1730135436613,-264.75192586,0.00024931,4]
[340936818,1730135436623,-500.0,0.00024931,4]
[340936819,1730135436632,-517.55,0.00024931,4]
[340936820,1730135436643,-500.0,0.00024931,4]
[340936821,1730135436652,-848.22,0.00024931,4]
[340936822,1730135436661,-500.0,0.00024931,4]
[340936823,1730135436670,-500.0,0.00024931,4]
[340936824,1730135436681,-500.0,0.00024931,4]
[340936825,1730135436690,-500.0,0.00024931,4]
[340936826,1730135436698,-500.0,0.00024931,4]
[340936827,1730135436707,-500.0,0.00024931,4]
[340936828,1730135436717,-472.54744767,0.00024931,4]
[340936829,1730135436734,-27.45255233,0.00024931,4]
[340936830,1730135436743,-500.0,0.00024931,4]
[340936831,1730135436753,-500.0,0.00024931,4]
[340936832,1730135436762,-500.0,0.00024931,4]
[340936833,1730135436771,-500.0,0.00024931,4]
[340936834,1730135436780,-37.05304127,0.00024931,4]
[340936835,1730135436792,-466.0,0.00024931,4]
[340936836,1730135436803,-297.24695873,0.00024931,4]
[340936837,1730135436812,-353.01455643,0.00024931,4]
[340936838,1730135436824,-1766.50544357,0.00024931,4]
[340936839,1730135436833,-500.0,0.00024931,4]
[340936840,1730135436843,-794.79,0.00024931,4]
[340936841,1730135436852,-500.0,0.00024931,4]
[340936842,1730135436861,-533.38,0.00024931,4]
[340936843,1730135436871,-500.0,0.00024931,4]
[340936844,1730135436880,-500.0,0.00024931,4]
[340936845,1730135436889,-656.07,0.00024931,4]
[340936846,1730135436898,-500.0,0.00024931,4]
[340936847,1730135436907,-500.0,0.00024931,4]
[340936848,1730135436916,-500.0,0.00024931,4]
[340936849,1730135436926,-500.0,0.00024931,4]
[340936850,1730135436935,-500.0,0.00024931,4]
[340936851,1730135436944,-603.26036053,0.00024931,4]
[340936852,1730135436953,-500.0,0.00024931,4]
[340936853,1730135436962,-151.0,0.00024931,7]
[340936854,1730135436972,-500.0,0.00024931,4]
[340936855,1730135436982,-500.0,0.00024931,4]
[340936856,1730135436991,-500.0,0.00024931,4]
[340936857,1730135437001,-1480.49646516,0.00024931,4]
[340936866,1730135438752,-500.0,0.00024657,4]
[340936867,1730135438761,-2047.63353484,0.00024931,4]
[340936868,1730135438771,-730.09,0.00024931,4]
[340936869,1730135438782,-677.41,0.00024931,4]
[340936870,1730135438791,-500.0,0.00024931,4]
[340936871,1730135438800,-500.0,0.00024931,4]
[340936872,1730135438809,-1390.11,0.00024931,4]
[340936873,1730135438819,-500.0,0.00024931,4]
[340936874,1730135438828,-852.39,0.00024931,4]
[340936875,1730135438837,-500.0,0.00024931,4]
[340936876,1730135438847,-611.37,0.00024931,4]
[340936877,1730135438855,-703.59,0.00024931,4]
[340936878,1730135438865,-747.21,0.00024931,4]
[340936879,1730135438873,-500.0,0.00024931,4]
[340936880,1730135438882,-500.0,0.00024931,4]
[340936881,1730135438891,-1300.24,0.00024931,4]
[340936882,1730135438901,-500.0,0.00024931,4]
[340936883,1730135438910,-500.0,0.00024931,4]
[340936884,1730135438920,-500.0,0.00024931,4]
[340936885,1730135438930,-500.0,0.00024931,4]
[340936886,1730135438939,-500.0,0.00024931,4]
[340936887,1730135438948,-500.0,0.00024931,4]
[340936888,1730135438957,-500.0,0.00024931,4]
[340936889,1730135438967,-500.0,0.00024931,4]
[340936890,1730135438976,-580.67,0.00024931,4]
[340936891,1730135438985,-859.6,0.00024931,4]
[340936892,1730135438994,-500.0,0.00024931,4]
[340936893,1730135439003,-500.0,0.00024931,4]
[340936894,1730135439012,-500.0,0.00024931,4]
[340936895,1730135439021,-500.0,0.00024931,4]
[340936896,1730135439031,-1057.31,0.00024931,4]
[340936897,1730135439040,-500.0,0.00024931,4]
[340936898,1730135439049,-500.0,0.00024931,4]
[340936899,1730135439058,-1284.54,0.00024931,4]
[340936900,1730135439067,-553.32,0.00024931,4]
[340936901,1730135439077,-500.0,0.00024931,4]
[340936902,1730135439086,-2224.6,0.00024931,4]
[340936903,1730135439095,-500.0,0.00024931,4]
[340936904,1730135439104,-151.0,0.00024931,7]
[340936905,1730135439116,-151.0,0.00024931,7]
[340936906,1730135439125,-2136.97,0.00024931,4]
[340936907,1730135439134,-710.23,0.00024931,4]
[340936908,1730135439144,-500.0,0.00024931,4]
[340936909,1730135439153,-786.41,0.00024931,4]
[340936910,1730135439162,-751.63,0.00024931,4]
[340936911,1730135439171,-500.0,0.00024931,4]
[340936912,1730135439182,-4504.98,0.00024931,4]
[340936913,1730135439191,-500.0,0.00024931,4]
[340936914,1730135439200,-952.03,0.00024931,4]
[340936915,1730135439209,-1057.81,0.00024931,4]
[340936916,1730135439218,-1095.71,0.00024931,4]
[340936917,1730135439227,-531.08,0.00024931,4]
[340936918,1730135439236,-572.56,0.00024931,4]
[340936919,1730135439250,-500.0,0.00024931,4]
[340936920,1730135439259,-640.49,0.00024931,4]
[340936921,1730135439269,-500.0,0.00024931,4]
[340936922,1730135439278,-500.0,0.00024931,4]
[340936923,1730135439288,-706.57,0.00024931,4]
[340936924,1730135439297,-997.4,0.00024931,4]
[340936925,1730135439307,-500.0,0.00024931,4]
[340936926,1730135439316,-500.0,0.00024931,4]
[340936927,1730135439327,-500.0,0.00024931,4]
[340936928,1730135439336,-500.0,0.00024931,4]
[340936929,1730135439346,-500.0,0.00024973,2]
[340936930,1730135439355,-360.87157283,0.00024973,2]
[340936931,1730135439366,-500.0,0.00024973,2]
[340936932,1730135439375,-507.49635741,0.00024973,2]
[340936933,1730135439385,-500.79602157,0.00024973,2]
[340936934,1730135439394,-159.29502616,0.00024973,2]
[340936935,1730135439403,-407.89748958,0.00024973,2]
[340936947,1730135440544,-98.79288754,0.00024973,2]
[340936948,1730135440554,-177.0325656,0.00024973,2]
[340936949,1730135440564,-157.60455586,0.0002499,3]
[340936950,1730135440912,-3991.25220551,0.0002499,3]
[340936951,1730135440921,-5896.6868197,0.0002499,3]
[340936952,1730135440931,-395.29,0.00024991,10]
[340936953,1730135440940,-25354.97465683,0.00025,2]
[340936954,1730135440949,-906.97765902,0.00025001,30]
[340936955,1730135440958,-500.0,0.00025001,30]
[340936956,1730135440967,-500.0,0.00025001,30]
[340936957,1730135440976,-500.0,0.00025001,30]
[340936958,1730135440986,-500.0,0.00025001,30]
[340936959,1730135440995,-884.71178818,0.00025001,30]
[340936960,1730135441005,-500.0,0.00025001,30]
[340936961,1730135441014,-500.0,0.00025001,30]
[340936962,1730135441023,-500.0,0.00025001,30]
[340936963,1730135441033,-500.0,0.00025001,30]
[340936964,1730135441043,-864.94886113,0.00025001,30]
[340936965,1730135441052,-500.0,0.00025001,30]
[340936966,1730135441062,-500.0,0.00025001,30]
[340936967,1730135441071,-500.0,0.00025001,30]
[340936968,1730135441081,-500.0,0.00025001,30]
[340936969,1730135441090,-988.69364579,0.00025001,30]
[340936970,1730135441099,-600.0,0.00025001,30]
[340936971,1730135441108,-600.0,0.00025001,30]
[340936972,1730135441118,-600.0,0.00025001,30]
[340936973,1730135441127,-600.0,0.00025001,30]
[340936974,1730135441137,-600.0,0.00025001,30]
[340936975,1730135441146,-600.0,0.00025001,30]
[340936976,1730135441155,-600.0,0.00025001,30]
[340936977,1730135441164,-604.82328038,0.00025001,30]
[340936978,1730135441174,-151.0,0.00025001,7]
[340936979,1730135441183,-151.0,0.00025001,7]
[340936980,1730135441192,-6004.495,0.0002505,2]
[340936981,1730135441202,-150.0,0.0002505,2]
[340936982,1730135441211,-1000.0,0.00025105,2]
[340936983,1730135441220,-12446.5702841,0.00025195,3]
[340936984,1730135441229,-17690.0604591,0.00025195,3]
[340936985,1730135441239,-150.112233,0.000252,11]
[340936986,1730135441252,-150.112233,0.000252,11]
[340936987,1730135441262,-502.13564948,0.00025205,4]
[340936988,1730135441271,-500.0,0.00025205,4]
[340936989,1730135441280,-615.25,0.00025205,4]
[340936990,1730135441290,-500.0,0.00025205,4]
[340936991,1730135441300,-500.0,0.00025205,4]
[340936992,1730135441309,-478.43098233,0.00025205,4]
[340936993,1730135441319,-500.0,0.00025205,4]
[340936994,1730135441329,-500.0,0.00025205,4]
[340936995,1730135441339,-632.38591856,0.00025205,4]
[340936996,1730135441348,-500.0,0.00025205,4]
[340936997,1730135441357,-500.0,0.00025205,4]
[340936998,1730135441368,-500.0,0.00025205,4]
[340936999,1730135441377,-500.0,0.00025205,4]
[340937000,1730135441386,-500.0,0.00025205,4]
[340937001,1730135441395,-1082.28,0.00025205,4]
[340937002,1730135441405,-500.0,0.00025205,4]
[340937003,1730135441414,-687.05,0.00025205,4]
[340937004,1730135441423,-500.0,0.00025205,4]
[340937005,1730135441433,-542.52,0.00025205,4]
[340937006,1730135441442,-820.79,0.00025205,4]
[340937007,1730135441451,-500.0,0.00025205,4]
[340937008,1730135441462,-500.0,0.00025205,4]
[340937009,1730135441471,-500.0,0.00025205,4]
[340937010,1730135441480,-500.0,0.00025205,4]
[340937011,1730135441489,-500.0,0.00025205,4]
[340937012,1730135441499,-498.2252457,0.00025205,4]
[340937013,1730135441508,-500.0,0.00025205,4]
[340937014,1730135441517,-500.0,0.00025205,4]
[340937015,1730135441526,-505.64,0.00025205,4]
[340937016,1730135441535,-500.0,0.00025205,4]
[340937017,1730135441544,-526.99,0.00025205,2]
[340937018,1730135441554,-668.71,0.00025205,4]
[340937019,1730135441564,-1279.73,0.00025205,4]
[340937020,1730135441573,-505.48,0.00025205,4]
[340937021,1730135441582,-500.0,0.00025205,4]
[340937022,1730135441591,-1124.75,0.00025205,4]
[340937023,1730135441601,-500.0,0.00025205,4]
[340937024,1730135441610,-500.0,0.00025205,4]
[340937025,1730135441620,-500.0,0.00025205,4]
[340937026,1730135441630,-338.86761461,0.00025205,4]
[340937027,1730135441639,-884.17,0.00025205,4]
[340937028,1730135441648,-500.0,0.00025205,4]
[340937029,1730135441657,-500.0,0.00025205,4]
[340937030,1730135441666,-500.0,0.00025205,4]
[340937031,1730135441675,-604.33,0.00025205,4]
[340937032,1730135441684,-570.27,0.00025205,4]
[340937033,1730135441693,-500.0,0.00025205,4]
[340937034,1730135441702,-500.0,0.00025205,4]
[340937035,1730135441712,-500.0,0.00025205,4]
[340937036,1730135441721,-500.0,0.00025205,4]
[340937037,1730135441730,-151.0,0.00025205,7]
[340937038,1730135441740,-500.0,0.00025205,4]
[340937039,1730135441749,-500.0,0.00025205,4]
[340937040,1730135441758,-500.0,0.00025205,4]
[340937041,1730135441767,-500.0,0.00025205,4]
[340937042,1730135441776,-500.0,0.00025205,4]
[340937043,1730135441786,-500.0,0.00025205,4]
[340937044,1730135441795,-500.0,0.00025205,4]
[340937045,1730135441805,-500.0,0.00025205,4]
[340937046,1730135441814,-814.15,0.00025205,4]
[340937047,1730135441823,-500.0,0.00025205,4]
[340937048,1730135441833,-500.0,0.00025205,4]
[340937049,1730135441843,-517.55,0.00025205,4]
[340937050,1730135441852,-500.0,0.00025205,4]
[340937051,1730135441862,-848.22,0.00025205,4]
[340937052,1730135441871,-340.80874925,0.00025205,4]
[340937053,1730135441881,-500.0,0.00025205,4]
[340937054,1730135441890,-500.0,0.00025205,4]
[340937055,1730135441899,-500.0,0.00025205,4]
[340937056,1730135441908,-500.0,0.00025205,4]
[340937057,1730135441917,-500.0,0.00025205,4]
[340937058,1730135441927,-500.0,0.00025205,4]
[340937059,1730135441936,-500.0,0.00025205,4]
[340937060,1730135441946,-500.0,0.00025205,4]
[340937061,1730135441955,-500.0,0.00025205,4]
[340937062,1730135441964,-500.0,0.00025205,4]
[340937063,1730135441974,-800.3,0.00025205,4]
[340937064,1730135441983,-2119.52,0.00025205,4]
[340937065,1730135441992,-500.0,0.00025205,4]
[340937066,1730135442002,-533.38,0.00025205,4]
[340937067,1730135442011,-500.0,0.00025205,4]
[340937068,1730135442020,-500.0,0.00025205,4]
[340937069,1730135442029,-500.0,0.00025205,4]
[340937070,1730135442039,-500.0,0.00025205,4]
[340937071,1730135442048,-500.0,0.00025205,4]
[340937072,1730135442057,-500.0,0.00025205,4]
[340937073,1730135442066,-500.0,0.00025205,4]
[340937074,1730135442075,-500.0,0.00025205,4]
[340937075,1730135442085,-500.0,0.00025205,4]
[340937076,1730135442095,-500.0,0.00025205,4]
[340937077,1730135442104,-500.0,0.00025205,4]
[340937078,1730135442115,-3528.13,0.00025205,4]
[340937079,1730135442124,-730.09,0.00025205,4]
[340937080,1730135442133,-677.41,0.00025205,4]
[340937081,1730135442143,-500.0,0.00025205,4]
[340937082,1730135442152,-500.0,0.00025205,4]
[340937083,1730135442162,-1390.11,0.00025205,4]
[340937084,1730135442172,-500.0,0.00025205,4]
[340937085,1730135442181,-852.39,0.00025205,4]
[340937086,1730135442190,-500.0,0.00025205,4]
[340937087,1730135442199,-611.37,0.00025205,4]
[340937088,1730135442208,-703.59,0.00025205,4]
[340937089,1730135442218,-747.21,0.00025205,4]
[340937090,1730135442227,-500.0,0.00025205,4]
[340937091,1730135442236,-500.0,0.00025205,4]
[340937092,1730135442247,-1300.24,0.00025205,4]
[340937093,1730135442256,-500.0,0.00025205,4]
[340937094,1730135442265,-500.0,0.00025205,4]
[340937095,1730135442274,-500.0,0.00025205,4]
[340937096,1730135442283,-500.0,0.00025205,4]
[340937097,1730135442293,-500.0,0.00025205,4]
[340937098,1730135442302,-500.0,0.00025205,4]
[340937099,1730135442311,-500.0,0.00025205,4]
[340937100,1730135442320,-500.0,0.00025205,4]
[340937101,1730135442330,-580.67,0.00025205,4]
[340937102,1730135442339,-859.6,0.00025205,4]
[340937103,1730135442349,-500.0,0.00025205,4]
[340937104,1730135442358,-500.0,0.00025205,4]
[340937105,1730135442368,-500.0,0.00025205,4]
[340937106,1730135442378,-500.0,0.00025205,4]
[340937107,1730135442387,-1057.31,0.00025205,4]
[340937108,1730135442396,-500.0,0.00025205,4]
[340937109,1730135442405,-500.0,0.00025205,4]
[340937110,1730135442416,-1284.54,0.00025205,4]
[340937111,1730135442425,-553.32,0.00025205,4]
[340937112,1730135442434,-500.0,0.00025205,4]
[340937113,1730135442444,-2224.6,0.00025205,4]
[340937114,1730135442453,-500.0,0.00025205,4]
[340937115,1730135442461,-151.0,0.00025205,7]
[340937116,1730135442470,-151.0,0.00025205,7]
[340937117,1730135442479,-2136.97,0.00025205,4]
[340937118,1730135442488,-710.23,0.00025205,4]
[340937119,1730135442497,-500.0,0.00025205,4]
[340937120,1730135442506,-786.41,0.00025205,4]
[340937121,1730135442515,-751.63,0.00025205,4]
[340937122,1730135442524,-500.0,0.00025205,4]
[340937123,1730135442533,-4504.98,0.00025205,4]
[340937124,1730135442542,-500.0,0.00025205,4]
[340937125,1730135442551,-952.03,0.00025205,4]
[340937126,1730135442562,-1057.81,0.00025205,4]
[340937127,1730135442571,-531.08,0.00025205,4]
[340937128,1730135442580,-1095.71,0.00025205,4]
[340937129,1730135442589,-572.56,0.00025205,4]
[340937130,1730135442598,-500.0,0.00025205,4]
[340937131,1730135442607,-640.49,0.00025205,4]
[340937132,1730135442618,-500.0,0.00025205,4]
[340937133,1730135442627,-500.0,0.00025205,4]
[340937134,1730135442636,-706.57,0.00025205,4]
[340937135,1730135442645,-997.4,0.00025205,4]
[340937136,1730135442655,-500.0,0.00025205,4]
[340937137,1730135442664,-500.0,0.00025205,4]
[340937138,1730135442673,-500.0,0.00025205,4]
[340937139,1730135442682,-500.0,0.00025205,4]
[340937140,1730135442692,-151.0,0.0002522,7]
[340937141,1730135442701,-20744.2838068,0.0002523,3]
[340937142,1730135442710,-29483.4340985,0.0002523,3]
[340937143,1730135442719,-151.0,0.0002523,7]
[340937144,1730135442729,-56198.5991348,0.0002524,2]
[340937145,1730135442866,-3374.5,0.0002524,2]
[340937146,1730135442878,-369.42395734,0.0002524,2]
[340937179,1730135443494,-1192.04,0.0002524,2]
[340937180,1730135443506,-14230.28027721,0.0002524,2]
[340937181,1730135443550,-1737.2,0.0002524,2]
[340937200,1730135484477,162.327034,0.00013973,2]
[340937202,1730136159939,163.709659,0.00013973,2]
[340937206,1730136435134,-242.72822,0.00021531,2]
[340937207,1730136435158,-242.72822,0.0002159,2]
[340937208,1730136435180,-53.32512913,0.00021649,2]
[340937209,1730136484728,160.0,0.0002,2]
[340937211,1730136511607,308.09326901,0.000176,2]
[340937212,1730136518492,4009.75824922,0.00035817,30]
[340937213,1730136519682,4480.64568611,0.00035817,30]
[340937214,1730136546179,-781.519784,0.00020856,2]
[340937215,1730136546200,-300.0,0.00021026,2]
[340937216,1730136546221,-300.0,0.00021026,2]
[340937217,1730136546241,-24900.0,0.00021027,2]
[340937218,1730136546264,-7437.466729,0.00021075,2]
[340937219,1730136546286,-189.40309087,0.00021649,2]
[340937220,1730136546306,-500.0,0.000217,2]
[340937221,1730136546327,-242.72822,0.00021708,2]
[340937222,1730136546347,-7437.466729,0.0002176,2]
[340937223,1730136546369,-242.72822,0.00021768,2]
[340937224,1730136546390,-150.0,0.00021813,2]
[340937225,1730136546411,-242.72822,0.00021827,2]
[340937226,1730136546432,-242.72822,0.00021886,2]
[340937227,1730136546454,-242.72822,0.00021945,2]
[340937228,1730136546474,-9782.67667897,0.00022,30]
[340937229,1730136546496,-242.72822,0.00022004,2]
[340937230,1730136546517,-242.72822,0.00022063,2]
[340937231,1730136546539,-242.72822,0.00022122,2]
[340937232,1730136546560,-242.72822,0.00022181,2]
[340937233,1730136546581,-6495.93604704,0.00022199,2]
[340937234,1730136546601,-242.72822,0.0002224,2]
[340937235,1730136546623,-1103.66295472,0.0002229,2]
[340937236,1730136546646,-47998.1808762,0.0002229,2]
[340937237,1730136546669,-242.72822,0.00022299,2]
[340937238,1730136546690,-190.0,0.00022304,2]
[340937239,1730136546711,-242.72822,0.00022358,2]
[340937240,1730136546731,-500.0,0.000224,2]
[340937241,1730136546751,-500.0,0.000224,2]
[340937242,1730136546771,-603.88460413,0.000224,2]
[340937243,1730136546794,-500.0,0.000224,2]
[340937244,1730136546815,-500.0,0.000224,2]
[340937245,1730136546839,-242.72822,0.00022417,2]
[340937246,1730136546862,-4669.30304095,0.00022445,2]
[340937247,1730136550151,-2768.16368805,0.00022445,2]
[340937248,1730136550173,-242.72822,0.00022476,2]
[340937249,1730136550194,-242.72822,0.00022535,2]
[340937250,1730136550215,-242.72822,0.00022594,2]
[340937251,1730136550236,-242.72822,0.00022653,2]
[340937252,1730136550257,-187.0,0.00022806,2]
[340937253,1730136550277,-420.0,0.00022871,2]
[340937254,1730136550297,-420.0,0.00023128,2]
[340937255,1730136556944,500.0,0.000217,2]
[340937256,1730136556997,1000.0,0.0002307,2]
[340937257,1730136558571,500.0,0.000217,2]
[340937258,1730136558824,109.52164105,0.0002307,2]
[340937259,1730136558846,207.25529257,0.0002307,2]
[340937260,1730136561118,-683.22306638,0.0002307,2]
[340937261,1730136561145,-170.526021,0.00023331,2]
[340937262,1730136561167,-345.19462981,0.000234,2]
[340937263,1730136561189,-1000.0,0.0002377,2]
[340937264,1730136561210,-1001.55047711,0.00023852,2]
[340937265,1730136561231,-372.817,0.0002399,2]
[340937297,1730136632536,-564.95,0.00024163,3]
[340937298,1730136632546,-269.58906674,0.00024182,2]